Cogmind - Beta 16 @@@ ROGUE MODE // 2025.11.02 @ 07:52:11 Player: calciume Result: Destroyed by D-53 Grenadier with Mini Grenade Launcher Performance ------------- Evolutions (0) 0 Regions Visited (2) 400 Robots Destroyed (10) 50 Value Destroyed (209) 209 Prototype IDs (0) 0 Alien Tech Used (0) 0 Bonus (0) 0 TOTAL SCORE: 659 Bonus ------- None Cogmind --------- Core Integrity 0/250 Matter 395/400 Energy 82/100 System Corruption 0% Temperature Cool (14) Movement Core (50) Location -10/Mines Parts ------- > --- POWER (1) -------- (None) > --- PROPULSION (2) --- (None) > --- UTILITY (2) ------ Medium Matter Pod > --- WEAPON (2) ------- (None) > --- INVENTORY (5) ---- Ion Engine Wheel Wheel Assault Rifle Peak State ------------ > --- POWER ------------ Light Ion Engine > --- PROPULSION ------- Wheel Wheel > --- UTILITY ---------- Heat Sink Medium Matter Pod > --- WEAPON ----------- Assault Rifle Assault Rifle > --- INVENTORY -------- Ion Engine Aluminum Leg EM Pulse Gun [Rating: 7] Favorites ----------- Power Light Ion Engine Engine Light Ion Engine Propulsion Aluminum Leg Leg Aluminum Leg Wheel Wheel Utility Medium Matter Pod Device Heat Sink Storage Medium Matter Pod Weapon Assault Rifle Energy Gun EM Pulse Gun Ballistic Gun Assault Rifle Build | -11 -10 -10 ------- Run | Yrd Mat Min Slots Evolved . | . . . Power . | . . . Propulsion . | . . . Utility . | . . . Weapon . | . . . Parts Attached 14 | 7 1 6 Power 2 | 1 1 . Engine 2 | 1 1 . Core . | . . . Reactor . | . . . Propulsion 6 | 3 . 3 Treads . | . . . Leg 4 | 2 . 2 Wheel 2 | 1 . 1 Hover . | . . . Flight . | . . . Utility 2 | 1 . 1 Device 1 | . . 1 Storage 1 | 1 . . Processor . | . . . Hackware . | . . . Protection . | . . . Artifact . | . . . Weapon 4 | 2 . 2 Energy Gun 2 | . . 2 Energy Cannon . | . . . Ballistic Gun 2 | 2 . . Ballistic Cannon . | . . . Launcher . | . . . Special Weapon . | . . . Impact Weapon . | . . . Slashing Weapon . | . . . Piercing Weapon . | . . . Special Melee Weapon . | . . . Unidentified Prototypes . | . . . Parts Lost 10 | . 3 7 Power 2 | . 1 1 Propulsion 4 | . 2 2 Utility 1 | . . 1 Weapon 3 | . . 3 Highest Loss Streak 7 | . 3 7 To Critical Strikes . | . . . Average Backups 3 | 3 3 3 Power . | . . . Propulsion 1 | 1 2 1 Utility . | . . . Weapon 1 | 1 1 1 Tool/Special . | . . . Unused Backups 1 | . . 1 Power 1 | . . 1 Propulsion . | . . . Utility . | . . . Weapon . | . . . Tool/Special . | . . . Average Slot Usage (%) 85 | . 82 89 Engine 12 | . 12 13 Leg 21 | . 26 13 Wheel 5 | . . 12 Device 4 | . . 9 Storage 14 | . 14 14 Energy Gun 2 | . . 4 Ballistic Gun 24 | . 28 20 Peak Build Rating 7 | 6 6 7 Average Rating 5 | 4 5 6 On Entrance 3 | . 6 4 Avg Prop Armor Cover (%) . | . . . Naked Turns . | . . . Heaviest Build 10 | 9 9 10 Greatest Support 20 | 20 20 20 Greatest Overweight (x) 2 | . 2 . Average Overweight (x) . | . . . Largest Inventory Capacity 5 | 5 5 5 Average Capacity 5 | 5 5 5 Most Carried 5 | 5 4 5 Average Carried 3 | 3 3 3 Final Capacity 5 | 5 5 5 Final Carried 4 | 4 3 4 Class Distribution -------------------- 88% | Mutant 11% | Scavenger-Mutant Dominant Class ---------------- Mutant | -10/Materials Scavenger-Mutant | -10/Mines Resources | -11 -10 -10 ----------- Run | Yrd Mat Min Matter Collected 534 | 369 47 118 Remotely . | . . . Salvage Created 284 | 93 36 155 Parts 21 | 11 1 9 Haulers Intercepted . | . . . Recyclers Shooed . | . . . Parts Field Recycled . | . . . Retrieved Matter . | . . . Parts Self-Destructed . | . . . Prevented . | . . . Parts Restored . | . . . Kills | -11 -10 -10 ------- Run | Yrd Mat Min Combat Hostiles Destroyed 6 | 1 2 3 Guns 6 | 1 2 3 Classes Destroyed 6 | 3 1 2 Worker 1 | 1 . . Tunneler 2 | 2 . . Recycler 1 | . . 1 Swarmer 2 | . 2 . Grunt 3 | 1 . 2 Demolisher 1 | . . 1 Best Kill Streak 2 | 2 2 2 Combat Bots Only 2 | 1 2 1 Max Kills in Single Turn 1 | 1 1 1 Gunslinging . | . . . Exploded . | . . . Melee . | . . . Uniques/NPCs Destroyed . | . . . Combat | -11 -10 -10 -------- Run | Yrd Mat Min Hostile Shots Fired 85 | 9 56 20 Missed 28 | 5 21 2 Hits 57 | 4 35 18 Projectile 57 | 4 35 18 AOE 11 | . . 11 Damage Taken 1004 | 46 407 551 Core 254 | 12 67 175 Absorbed by Shields . | . . . Core Remaining (%) 95 | 95 . . Volleys Fired 36 | 11 16 9 Largest 2 | 2 2 2 Hottest 65 | 40 40 65 Shots Fired 70 | 22 32 16 Gun 70 | 22 32 16 Cannon . | . . . Launcher . | . . . Special . | . . . Kinetic 68 | 22 32 14 Thermal 2 | . . 2 Explosive . | . . . Electromagnetic . | . . . Robot Hit Streak 7 | 3 7 3 Robot Miss Streak 3 | 3 3 1 Penetration Max . | . . . Secondary Targets . | . . . Shots Hit Robots 38 | 11 16 11 Core Hits 16 | 5 4 7 Critical Kills . | . . . Critical Parts Destroyed 1 | . 1 . Critical Strikes 1 | . 1 . Destroy 1 | . 1 . Melee Attacks . | . . . Impact . | . . . Slashing . | . . . Piercing . | . . . Sneak Attacks . | . . . Combat Hostiles . | . . . Follow-up Attacks . | . . . Damage Inflicted 498 | 139 212 147 Guns 498 | 139 212 147 Cannons . | . . . Explosions . | . . . Melee . | . . . Ramming . | . . . Kinetic 465 | 139 212 114 Thermal 33 | . . 33 Explosive . | . . . Electromagnetic . | . . . Impact . | . . . Slashing . | . . . Piercing . | . . . Highest Corruption . | . . . Average Corruption . | . . . Corruption Purged . | . . . Corruption Blocked . | . . . Overload Shots . | . . . Overflow Damage . | . . . Projectiles . | . . . Explosions . | . . . Melee . | . . . Knockbacks . | . . . Impact . | . . . Kinetic . | . . . Secondary . | . . . Self-Inflicted Damage . | . . . Shots . | . . . Rammed . | . . . Targets Rammed . | . . . Kicked . | . . . Crushed . | . . . Highest Temperature 14 | . 2 14 Average Temperature 3 | . 1 10 Received Heat Transfer 282 | 24 204 54 Siege Activations . | . . . Martial Activations . | . . . Shielding Activations . | . . . Robots Disrupted . | . . . Combat Hostiles . | . . . Robots Corrupted . | . . . Combat Hostiles . | . . . Parts Fried . | . . . Impact Corruptions . | . . . Robots Melted . | . . . Combat Hostiles . | . . . Parts Melted . | . . . Heat Transferred 74 | . . 74 Parts Sabotaged . | . . . Parts Stolen . | . . . Parts Stripped . | . . . Power Chain Reactions . | . . . Alert | -11 -10 -10 ------- Run | Yrd Mat Min Maximum Alert Level . | . . . Low Security (%) 100 | 100 100 100 Level 1 . | . . . Level 2 . | . . . Level 3 . | . . . Level 4 . | . . . Level 5 . | . . . High Security . | . . . Max Security . | . . . Peak Influence 60 | 20 60 45 Initial . | . . . Average 10 | 1 22 14 Influence Increases 200 | 35 80 85 Destroy 0b10 Robot/C 120 | 20 40 60 Destroy 0b10 Robot/NC 20 | 15 . 5 Destroy Leader 30 | . 10 20 Lose Combat Pursuer 30 | . 30 . Influence Decreases 180 | 35 80 65 Time Decay 160 | 35 70 55 Lost Part 20 | . 10 10 Squads Dispatched 1 | . 1 . Investigation . | . . . Extermination . | . . . Reinforcement 1 | . 1 . Assault . | . . . Garrison . | . . . Intercept . | . . . Searches Triggered . | . . . Construction Impeded . | . . . Haulers Reinforced . | . . . Active Scanning Responses . | . . . Cargo Convoy Interrupts . | . . . Stealth | -11 -10 -10 --------- Run | Yrd Mat Min Distress Signals . | . . . Communications Jammed . | . . . Distress Signals . | . . . Times Spotted 16 | 1 10 5 Peak Tracking Total 5 | 1 5 2 Tactical Retreats 2 | . 2 . Traps | -11 -10 -10 ------- Run | Yrd Mat Min Traps Triggered 1 | . 1 . Indirectly . | . . . Trap Hack Attempts . | . . . Triggered . | . . . Disarmed . | . . . Reprogrammed . | . . . Reused . | . . . Traps Extracted . | . . . Installed . | . . . Triggered . | . . . Machines | -11 -10 -10 ---------- Run | Yrd Mat Min Machines Disabled . | . . . Max in Single Turn . | . . . Machines Repaired . | . . . Machines Dismantled . | . . . Machines Sabotaged . | . . . Overloaded Fab Kills . | . . . Hacking | -11 -10 -10 --------- Run | Yrd Mat Min Machines Accessed . | . . . Terminals . | . . . Fabricators . | . . . Repair Stations . | . . . Recycling Units . | . . . Scanalyzers . | . . . Garrison Access . | . . . Total Hacks . | . . . Successful . | . . . Failed . | . . . Catastrophic . | . . . Database Lockouts . | . . . Manual . | . . . Terminals . | . . . Fabricators . | . . . Repair Stations . | . . . Recycling Units . | . . . Scanalyzers . | . . . Garrison Access . | . . . Terminal Hacks . | . . . Fabricator Hacks . | . . . Repair Station Hacks . | . . . Recycling Unit Hacks . | . . . Scanalyzer . | . . . Garrison Access Hacks . | . . . Unauthorized Hacks . | . . . Terminals . | . . . Fabricators . | . . . Repair Stations . | . . . Recycling Units . | . . . Scanalyzers . | . . . Garrison Access . | . . . Data Cores Recovered . | . . . Used . | . . . Hacking Detections . | . . . Full Trace Events . | . . . Feedback Events . | . . . Feedback Blocked . | . . . Robot Schematics Acquired . | . . . Robots Built . | . . . Authchips . | . . . Time . | . . . Total Robot Build Rating . | . . . Part Schematics Acquired . | . . . Parts Built . | . . . Authchips . | . . . Time . | . . . Total Part Build Rating . | . . . Part Studies Acquired . | . . . Parts Repaired . | . . . Time . | . . . Parts Recycled . | . . . Recycled Matter . | . . . Retrieved Matter . | . . . Retrieved Components . | . . . Parts Scanalyzed . | . . . Part Schematics Acquired . | . . . Parts Damaged . | . . . Bothacking | -11 -10 -10 ------------ Run | Yrd Mat Min Used RIF Installer . | . . . Robots Hacked . | . . . Non-combat . | . . . Combat . | . . . Robot Hacks Applied . | . . . Relay Couplers Released . | . . . Fabnet Peak Effective % . | . . . Robots Rewired . | . . . Allies Hacked . | . . . Hacks Repelled . | . . . Allies | -11 -10 -10 -------- Run | Yrd Mat Min Total Allies . | . . . Largest Group . | . . . Highest-Rated Group . | . . . Highest-Rated Ally . | . . . Total Orders . | . . . Ally Attacks . | . . . Total Damage . | . . . Kills . | . . . Allies Corrupted . | . . . Allies Melted . | . . . Intel | -11 -10 -10 ------- Run | Yrd Mat Min Active Infowar (turns) . | . . . Robot Analysis Total . | . . . Derelict Logs Recovered . | . . . Drone Launches . | . . . Drone Recoveries . | . . . Exploration | -11 -10 -10 ------------- Run | Yrd Mat Min Turns Passed 709 | 330 220 159 Spaces Moved 498 | 250 138 110 Core 28 | 27 1 . Treads . | . . . Legs 425 | 223 137 65 Wheels 45 | . . 45 Hover . | . . . Flight . | . . . Fastest Speed 50 | 50 120 80 Average Speed 112 | 112 120 103 Slowest Speed 150 | 120 150 120 Overloaded Moves . | . . . Propulsion Burnouts . | . . . Robots Hopped . | . . . Potential Cave-ins . | . . . Cave-ins Triggered . | . . . Exploration Rate (%) 21 | 11 28 25 Regions Visited 2 Branch Regions 1 Pre-discovered Areas . | . . . Known Exits Taken . | . . . Unknown Exits Taken 2 | 1 1 . Scrap Searched . | . . . Spaces Dug . | . . . Terrain Destroyed . | . . . Melee . | . . . Projectile . | . . . AOE . | . . . Terrain Rammed . | . . . Walls Destroyed . | . . . Machines Disabled . | . . . Actions | -11 -10 -10 --------- Run | Yrd Mat Min Total 574 | 277 160 137 Wait 13 | . 6 7 Move 496 | 249 137 110 Hop . | . . . Pick Up 13 | 9 . 4 Fast Attach 2 | 1 . 1 Attach 10 | 6 1 3 Detach 1 | 1 . . Swap 3 | . . 3 Drop . | . . . Fire 36 | 11 16 9 Melee . | . . . Ram . | . . . Kick . | . . . Crush . | . . . Escape Stasis . | . . . Rewire . | . . . Trap . | . . . Miscellaneous . | . . . Route ------- -11/Scrapyard -10/Materials -10/Mines (discovered 1 exit: [*Mat]) History --------- Turn | Location | Event 2 | -11/Scrapyard | Met Revision 17 73 | -11/Scrapyard | Discovered new exit (range 8) 331 | -11/Scrapyard | Entered Materials 332 | -10/Materials | Build established: Mutant 444 | -10/Materials | Discovered new exit (range 7) 551 | -10/Materials | Entered Mines 562 | -10/Mines | Discovered new exit (range 9) 581 | -10/Mines | Lost 3 parts (1p2n) 684 | -10/Mines | Assembled infested the area 707 | -10/Mines | Core integrity fell below 50% 709 | -10/Mines | Core integrity fell below 20% 710 | -10/Mines | Destroyed by D-53 Grenadier with Mini Grenade Launcher Last Messages --------------- Demolisher response squad. 00690_ C-45 Heavy ARC bursts open, deploying its payload. 00690_ D-53 Grenadier unfolds itself. 00691_ R-06 Scavenger destroyed. 00691_ EM Pulse Gun destroyed. 00692_ U-05 Engineer lays Concrete. 00699_ Assault Rifle destroyed. 00700_ The unstable cave ceiling collapses. 00700_ U-05 Engineer lays Concrete. 00702_ U-05 Engineer builds a Wall. 00704_ Lgt. Ion Engine destroyed. 00706_ Aluminum Leg destroyed. 00706_ U-05 Engineer lays Concrete. 00708_ Heat Sink destroyed. 00708_ U-05 Engineer lays Concrete. 00708_ D-53 Grenadier destroyed. 00709_ U-05 Engineer lays Concrete. 00709_ K-01 Serf collects debris. 00710_ Particle Gun destroyed. Map ----- +----------------------------------------------------+ | ?????????????????????????????????????????????????? | | ??????????????????????????????????????##########?? | | ??????????????????????????????????????# #?? | | ??????????????????????????????????????# """ #?? | | ??????????????????????????????????????# """ #?? | | ??????????????????????????????????????# """ #?? | | ??????????????????????????????????????# #?? | | ??????????????????????????????????????# #?? | | ??????????????????????????????????????# #?? | | ??????????????????????????????????????# #?? | | ???????????????????????#??????????????# #?? | | ?????????????????????## ??????????????####### ##?? | | ?????????????????????# ?????????????####???# #??? | | ????????????????????## ????????????## ##### #??? | | ???????????????????## ???????????## #??? | | ???????????????????# ??????????## #??? | | ????????????????????t ??????????# #### #??? | | ????????????????????# #######????# ##### #??? | | ???????????????????## # ##???# #?# #??? | | ???????????????????# $ # ##??## ### ###??? | | ??????????# ??????## u ##??# ## ##???? | | ??????????# ????# #### ##??? | | ???????????# ??# d ! ## k % #??? | | ????????????# # k %* #??? | | ????????????# #??? | | ?????????????# $ @ % < #??? | | ?????????????# ## #??? | | ?????????????## # #### #??? | | ??????????????#??# ## #### ##??? | | ?????????????????#### #### ## ##??? | | ????????????????????##### ##??# #??? | | ????????????????????????## ##???# #?? | | ?????????????????????????## ##????# ## #?? | | ??????????????????????????####?????# #### ##?? | | ???????????????????????????????????## ##???###??? | | ????????????????????????????????????####?????????? | | ?????????????????????????????????????????????????? | | ?????????????????????????????????????????????????? | | | | | | | | | | | | | | | | | | | | | | | | | +----------------------------------------------------+ Best States ------------- Heat Dissipation 35 Energy Generation 10 Energy Capacity 125 Matter Stores 400 Matter Capacity 400 Sight Range 16 Terrain Scan Density 10 Evasion (%) 55 Item Schematics ----------------- None Robot Schematics ------------------ None Fabricated ------------ Nothing Repaired ---------- Nothing Studied --------- None Alien Tech Used ----------------- None Achievements -------------- None Challenges ------------ None Game ------ Seed SegregatorControlStorm Manual? 0 Play Time 00:12:58 Cumulative 2.8 hours Start 2025.10.31 @ 01:41:29 End 2025.11.02 @ 07:52:11 Sessions 3 Manual Loads 0 Difficulty Rogue Special Mode None Game No. 3 Rogue 3 Adventurer 0 Explorer 0 Win Type - Total 0 Types 0/0/0/0/0/0/0/0/0/0 Lore% 5 Gallery% 5 Achievement% 5 Wizard Run 0 Options --------- Layout 1 ASCII 0 Keyboard 1 Movement Vi Keybinds 0 Fullscreen 2 Font 36/Smallcaps Map View 53x45 Zoom Use 0% Tactical HUD 1 Map Filters NONE Filters NONE Steam 1 RUN: d3853d74-6841-4839-aa40-e0baad09137b